Workbook

Sheet PRACTICA
A1: CC / DNI | B1: NOMBRE | C1: AREA | D1: SALARIO | E1: VENTAS | F1: % COMISION | G1: VR. COMISION | H1: AUX. TRANS | I1: AP. A SALUD | J1: A PAGAR | L1: RESUMEN
A2: 1466 | B2: MARIA FERNANDA | C2: RECURSOS H | D2: 50000 | E2: 10800 | F2: =IFERROR(VLOOKUP(E2,$M$22:$N$24,2,TRUE),0) -> 0.05 | G2: =IF(C2="CONTABILIDAD",E2*F2,0) -> 0 | H2: =IF(D2<=($N$28*4),$N$28,0) -> 0 | I2: =D2*4% -> 2000 | J2: =+D2+E2+G2+H2-I2 -> 58800 | Q2: 1 | R2: SUMA EL TOTAL DE VENTAS
A3: 929 | B3: JORGE CUBILLOS | C3: VENTAS | D3: 41639 | E3: 22037 | F3: =IFERROR(VLOOKUP(E3,$M$22:$N$24,2,TRUE),0) -> 0.1 | G3: =IF(C3="CONTABILIDAD",E3*F3,0) -> 0 | H3: =IF(D3<=($N$28*4),$N$28,0) -> 0 | I3: =D3*4% -> 1665.56 | J3: =+D3+E3+G3+H3-I3 -> 62010.44 | M3: CC / DNI: | N3: 1651 | Q3: 2 | R3: CALCULA EL % DE COMISIÓN SEGÚN LAS VENTAS
A4: 1055 | B4: MERLY TRUJILLO | C4: CONTABILIDAD | D4: 34537 | E4: 21648 | F4: 0.1 | G4: 2164.8 | H4: =IF(D4<=($N$28*4),$N$28,0) -> 0 | I4: 1381.48 | J4: 56968.32 | Q4: 3 | R4: CALCULA LA COMISION PARA EL AREA DE CONTABILIDAD
A5: 1443 | B5: MARINA LOPEZ | C5: RECURSOS H | D5: 55587 | E5: 16686 | F5: 0.05 | G5: 0 | H5: 0 | I5: 2223.48 | J5: 70049.52 | M5: NOMBRE: | N5: =VLOOKUP(N3,A2:I20,2,FALSE) -> LUZ SALCEDO | Q5: 4 | R5: CALCULA EL AUX. TRANSPORTE SOLO PARA QUIENES GANEN MENOS DE 4 SALARIOS MINIMOS
A6: 1651 | B6: LUZ SALCEDO | C6: VENTAS | D6: 52545 | E6: 10916 | F6: 0.05 | G6: 0 | H6: 0 | I6: 2101.8 | J6: 61359.2 | Q6: 5 | R6: SUMA EL NETO A PAGAR
A7: 1367 | B7: ALEX APARICIO MENDEZ | C7: BODEGA | D7: 45805 | E7: 17195 | F7: 0.05 | G7: 0 | H7: 0 | I7: 1832.2 | J7: 61167.8 | M7: AREA: | N7: =INDEX($A$2:$I$20,MATCH($N$3,$A$2:$A$20,0),3) -> VENTAS
A8: 1521 | B8: CAMILA ZUÑIGA | C8: CONTABILIDAD | D8: 48713 | E8: 5007 | F8: 0 | G8: 0 | H8: 0 | I8: 1948.52 | J8: 51771.48
A9: 1809 | B9: JOHANA VARGAS | C9: RECURSOS H | D9: 38469 | E9: 25605 | F9: 0.1 | G9: 0 | H9: 0 | I9: 1538.76 | J9: 62535.24 | M9: COMISION: | N9: =INDEX($A$2:$I$20,MATCH($N$3,$A$2:$A$20,0),4) -> 52545
A10: 1080 | B10: PIPE MENDEZ | C10: VENTAS | D10: 26599 | E10: 24799 | F10: 0.1 | G10: 0 | H10: 8400 | I10: 1063.96 | J10: 58734.04
A11: 1728 | B11: NATHALIA MURCIA | C11: CONTABILIDAD | D11: 36453 | E11: 26873 | F11: 0.1 | G11: 2687.3 | H11: 0 | I11: 1458.12 | J11: 64555.18 | M11: AUX TRANSPORTE: | N11: =INDEX($A$2:$I$20,MATCH($N$3,$A$2:$A$20,0),5) -> 10916
A12: 1605 | B12: ALEJANDRA COLORADO | C12: BODEGA | D12: 40478 | E12: 3369 | F12: 0 | G12: 0 | H12: 0 | I12: 1619.12 | J12: 42227.88
A13: 986 | B13: CAROLINA ROJAS | C13: RECURSOS H | D13: 51794 | E13: 26889 | F13: 0.1 | G13: 0 | H13: 0 | I13: 2071.76 | J13: 76611.24 | M13: NETO A PAGAR: | N13: =INDEX($A$2:$J$20,MATCH($N$3,$A$2:$A$20,0),10) -> 61359.2
A14: 1009 | B14: LUIS DEL CARMEN | C14: CONTABILIDAD | D14: 31891 | E14: 20840 | F14: 0.1 | G14: 2084 | H14: 8400 | I14: 1275.64 | J14: 61939.36
A15: 919 | B15: KARLA MORA | C15: BODEGA | D15: 30580 | E15: 21249 | F15: 0.1 | G15: 0 | H15: 8400 | I15: 1223.2 | J15: 59005.8
A16: 1257 | B16: STEPHANIA SANCHEZ | C16: BODEGA | D16: 52921 | E16: 20107 | F16: 0.1 | G16: 0 | H16: 0 | I16: 2116.84 | J16: 70911.16
A17: 1353 | B17: MARIANA ARTEAGA | C17: RECURSOS H | D17: 45592 | E17: 18173 | F17: 0.05 | G17: 0 | H17: 0 | I17: 1823.68 | J17: 61941.32
A18: 853 | B18: SANTIAGO AMAYA | C18: RECURSOS H | D18: 58145 | E18: 12489 | F18: 0.05 | G18: 0 | H18: 0 | I18: 2325.8 | J18: 68308.2
A19: 1750 | B19: CRUZ DE LAS CASAS | C19: BODEGA | D19: 50133 | E19: 14333 | F19: 0.05 | G19: 0 | H19: 0 | I19: 2005.32 | J19: 62460.68
A20: 927 | B20: PAOLA CAMILA ESTUPIÑAN | C20: VENTAS | D20: 42054 | E20: 15463 | F20: 0.05 | G20: 0 | H20: 0 | I20: 1682.16 | J20: 55834.84
M21: COMISIONES
M22: 10000 | N22: 0.05
M23: 20000 | N23: 0.1
M24: 30000 | N24: 0.17
M26: OTROS PARAMETROS
M27: SALARIO MINIMO | N27: 42000
M28: AUX. DE TRANSPORTE | N28: =+N27*20% -> 8400

Sheet DESARROLLO
A1: CC / DNI | B1: NOMBRE | C1: AREA | D1: SALARIO | E1: VENTAS | F1: % COMISION | G1: VR. COMISION | H1: AUX. TRANS | I1: AP. A SALUD | J1: A PAGAR | L1: RESUMEN
A2: 1466 | B2: MARIA FERNANDA | C2: RECURSOS H | D2: 32075 | E2: 10800 | F2: =VLOOKUP(E2,$M$22:$N$24,2,1) -> 0.05 | G2: =IF(C2="CONTABILIDAD",F2*E2,0) -> 0 | J2: =+D2+E2+G2+H2-I2 -> 42875 | Q2: 1 | R2: SUMA EL TOTAL DE VENTAS
A3: 929 | B3: JORGE CUBILLOS | C3: VENTAS | D3: 41639 | E3: 22037 | F3: =VLOOKUP(E3,$M$22:$N$24,2,1) -> 0.1 | G3: =IF(C3="CONTABILIDAD",F3*E3,0) -> 0 | J3: =+D3+E3+G3+H3-I3 -> 63676 | M3: CC / DNI: | N3: 929 | Q3: 2 | R3: CALCULA EL % DE COMISIÓN
A4: 1055 | B4: MERLY TRUJILLO | C4: CONTABILIDAD | D4: 34537 | E4: 21648 | F4: 0.1 | G4: 2164.8 | J4: 58349.8 | Q4: 3 | R4: CALCULA LA COMISION POR VENTAS
A5: 1443 | B5: MARINA LOPEZ | C5: RECURSOS H | D5: 55587 | E5: 16686 | F5: 0.05 | G5: 0 | J5: 72273 | M5: NOMBRE: | N5: =VLOOKUP($N$3,$A$2:$J$20,2,FALSE) -> JORGE CUBILLOS | Q5: 4 | R5: CALCULA LA COMISION PARA EL AREA DE CONTABILIDAD
A6: 1651 | B6: LUZ SALCEDO | C6: VENTAS | D6: 52545 | E6: 10916 | F6: 0.05 | G6: 0 | J6: 63461 | Q6: 5 | R6: CALCULA EL AUX. TRANSPORTE SOLO PARA QUIENES GANEN MENOS DE 4 SALARIOS MINIMOS
A7: 1367 | B7: ALEX APARICIO MENDEZ | C7: BODEGA | D7: 45805 | E7: 17195 | F7: 0.05 | G7: 0 | J7: 63000 | M7: AREA: | N7: =VLOOKUP($N$3,$A$2:$J$20,3,FALSE) -> VENTAS | Q7: 6 | R7: SUMA EL NETO A PAGAR
A8: 1521 | B8: CAMILA ZUÑIGA | C8: CONTABILIDAD | D8: 48713 | E8: 5007
A9: 1809 | B9: JOHANA VARGAS | C9: RECURSOS H | D9: 38469 | E9: 25605 | F9: 0.1 | G9: 0 | J9: 64074 | M9: COMISION: | N9: =VLOOKUP($N$3,$A$2:$J$20,7,FALSE) -> 0
A10: 1080 | B10: PIPE MENDEZ | C10: VENTAS | D10: 26599 | E10: 24799 | F10: 0.1 | G10: 0 | J10: 51398
A11: 1728 | B11: NATHALIA MURCIA | C11: CONTABILIDAD | D11: 36453 | E11: 26873 | F11: 0.1 | G11: 2687.3 | J11: 66013.3 | M11: AUX TRANSPORTE: | N11: =VLOOKUP($N$3,$A$2:$J$20,8,FALSE) -> 0
A12: 1605 | B12: ALEJANDRA COLORADO | C12: BODEGA | D12: 40478 | E12: 3369 | G12: 0 | J12: 43847
A13: 986 | B13: CAROLINA ROJAS | C13: RECURSOS H | D13: 51794 | E13: 26889 | F13: 0.1 | G13: 0 | J13: 78683 | M13: NETO A PAGAR: | N13: =VLOOKUP($N$3,$A$2:$J$20,10,FALSE) -> 63676
A14: 1009 | B14: LUIS DEL CARMEN | C14: CONTABILIDAD | D14: 31891 | E14: 20840 | F14: 0.1 | G14: 2084 | J14: 54815
A15: 919 | B15: KARLA MORA | C15: BODEGA | D15: 30580 | E15: 21249 | F15: 0.1 | G15: 0 | J15: 51829
A16: 1257 | B16: STEPHANIA SANCHEZ | C16: BODEGA | D16: 52921 | E16: 20107 | F16: 0.1 | G16: 0 | J16: 73028
A17: 1353 | B17: MARIANA ARTEAGA | C17: RECURSOS H | D17: 45592 | E17: 18173 | F17: 0.05 | G17: 0 | J17: 63765
A18: 853 | B18: SANTIAGO AMAYA | C18: RECURSOS H | D18: 58145 | E18: 12489 | F18: 0.05 | G18: 0 | J18: 70634
A19: 1750 | B19: CRUZ DE LAS CASAS | C19: BODEGA | D19: 50133 | E19: 14333 | F19: 0.05 | G19: 0 | J19: 64466
A20: 927 | B20: PAOLA CAMILA ESTUPIÑAN | C20: VENTAS | D20: 42054 | E20: 15463 | F20: 0.05 | G20: 0 | J20: 57517
E21: =SUM(E2:E20) -> 334478 | M21: COMISIONES
M22: 10000 | N22: 0.05
M23: 20000 | N23: 0.1
M24: 30000 | N24: 0.17
M26: OTROS PARAMETROS
M27: SALARIO MINIMO | N27: 42000
M28: AUX. DE TRANSPORTE | N28: =+N27*20% -> 8400

Sheet CALCULOS BÁSICOS
A1: VENTAS DEL MES | F1: DESCUENTO | G1: 0.15
A2: CANTIDAD | B2: VALOR UNITARIO | C2: VALOR TOTAL | D2: DESCUENTO | E2: NETO
A3: 14 | B3: 1950 | C3: =A3*B3 -> 27300 | D3: =C3*15% -> 4095 | E3: =C3-D3 -> 23205
A4: 45 | B4: 2606 | C4: =+A4*B4 -> 117270 | D4: =C4*15% -> 17590.5 | E4: =C4-D4 -> 99679.5
A5: 27 | B5: 1132 | C5: =+A5*B5 -> 30564 | D5: 4584.6 | E5: 25979.4
A6: 18 | B6: 3745 | C6: 67410 | D6: 10111.5 | E6: 57298.5
A7: 3 | B7: 2843 | C7: 8529 | D7: 1279.35 | E7: 7249.65
A8: 41 | B8: 2160 | C8: 88560 | D8: 13284 | E8: 75276
A9: 12 | B9: 2266 | C9: 27192 | D9: 4078.8 | E9: 23113.2
A10: 43 | B10: 2498 | C10: 107414 | D10: 16112.1 | E10: 91301.9

Sheet REFERENCIAS (hidden)
A1: VENTAS DEL MES | F1: DESCUENTO | G1: 0.15
A3: CANTIDAD | B3: VALOR UNITARIO | C3: VALOR TOTAL | D3: DESCUENTO | E3: NETO
A4: 14 | B4: 1950 | C4: =+A4*B4 -> 27300 | D4: =C4*$G$1 -> 4095
A5: 45 | B5: 2606 | C5: =+A5*B5 -> 117270 | D5: =C5*$G$1 -> 17590.5
A6: 27 | B6: 1132 | C6: 30564 | D6: =$C$6*$G$1 -> 4584.6
A7: 18 | B7: 3745 | C7: 67410 | D7: =$C$6*$G$1 -> 4584.6
A8: 3 | B8: 2843 | C8: 8529 | D8: 4584.6 | H8: =$C$6*$G$1 -> 4584.6
A9: 41 | B9: 2160 | C9: 88560 | D9: 4584.6
A10: 12 | B10: 2266 | C10: 27192 | D10: 4584.6 | I10: =$C$6*$G$1 -> 4584.6
A11: 43 | B11: 2498 | C11: 107414 | D11: 4584.6
I12: =$C$6*$G$1 -> 4584.6

Sheet Hoja11
A1: FUNCIONES SIN PARAMETROS
A2: =TODAY() -> 2021-03-06
A3: =NOW() -> 2021-03-06T03:30:52.440
A5: FUNCIONES CON PARAMETROS
A6: =SUM(4,5,6,7) -> 22

Sheet FUNCION SI
A1: VENTAS DEL MES | G1: DESCUENTO | H1: 0.15
A3: CANTIDAD | B3: VALOR UNITARIO | C3: VALOR TOTAL | D3: MES | E3: %DESCUENTO | F3: DESCUENTO | G3: NETO | I3: EL DESCUENTO APLICA SOLO PARA EL MES DE ENERO Y ABRIL
A4: 14 | B4: 1950 | C4: =+A4*B4 -> 27300 | D4: ENERO
A5: 45 | B5: 2606 | C5: =+A5*B5 -> 117270 | D5: FEBRERO
A6: 27 | B6: 1132 | C6: 30564 | D6: MARZO
A7: 18 | B7: 3745 | C7: 67410 | D7: ABRIL
A8: 3 | B8: 2843 | C8: 8529 | D8: ENERO
A9: 41 | B9: 2160 | C9: 88560 | D9: DICIEMBRE
A10: 12 | B10: 2266 | C10: 27192 | D10: AGOSTO
A11: 43 | B11: 2498 | C11: 107414 | D11: ENERO

Sheet NUMEROS
A1: VALORES
A2: 29,020.20
A3: 86183
A4: 92626
A5: 82,390.32
A6: 29278
A7: 54991
A8: 84999
A9: 25808
A10: 55813
A11: 89898
A12: 95121
A13: 10819
A14: 18346
A15: 60205
A16: 18015
A17: 88417
A18: 26419
A19: 11411
A20: 46957
